fUST/lending_fUST_20250115
["ID","MTS","AMOUNT","RATE_DAILY","PERIOD"]
[348986452,1736916655584,-805.03,0.00021643,3]
[348986453,1736916655599,-500.0,0.00021643,3]
[348986454,1736916655612,-13667.5,0.00021643,3]
[348986455,1736916655624,-655.22,0.00021643,3]
[348986456,1736916655636,-1080.86,0.00021643,3]
[348986457,1736916655648,-500.0,0.00021643,3]
[348986458,1736916655661,-1373.43,0.00021643,3]
[348986459,1736916655673,-1827.85,0.00021643,3]
[348986460,1736916655686,-500.0,0.00021643,3]
[348986461,1736916655699,-599.91,0.00021643,3]
[348986462,1736916655712,-712.76,0.00021643,3]
[348986463,1736916655724,-807.76,0.00021643,3]
[348986464,1736916655738,-684.89,0.00021643,3]
[348986465,1736916655752,-1567.61,0.00021643,3]
[348986466,1736916655765,-500.0,0.00021643,3]
[348986467,1736916655779,-757.07,0.00021643,3]
[348986468,1736916655791,-3983.37,0.00021643,3]
[348986469,1736916655804,-500.0,0.00021643,3]
[348986470,1736916655817,-5135.68,0.00021643,2]
[348986471,1736916655829,-624.76,0.00021643,3]
[348986472,1736916655842,-4712.04,0.00021643,3]
[348986473,1736916655854,-610.45,0.00021643,3]
[348986474,1736916655866,-550.77,0.00021643,3]
[348986475,1736916655879,-2486.58,0.00021643,3]
[348986476,1736916655890,-243.22012971,0.00021659,2]
[348986477,1736916655904,-151.0,0.00021679,6]
[348986478,1736916655916,-500.79486465,0.00021748,2]
[348986479,1736916655928,-1000.0,0.00021748,2]
[348986480,1736916655940,-742.49,0.0002178,3]
[348986481,1736916655953,-631.69,0.0002178,3]
[348986482,1736916655969,-550.31,0.0002178,3]
[348986483,1736916655982,-500.0,0.0002178,3]
[348986484,1736916655995,-500.0,0.0002178,3]
[348986485,1736916656009,-691.61,0.0002178,3]
[348986486,1736916656022,-633.68,0.0002178,2]
[348986487,1736916656035,-3854.09,0.0002178,3]
[348986488,1736916656048,-4218.29,0.0002178,3]
[348986489,1736916656061,-926.75,0.0002178,3]
[348986490,1736916656074,-1293.58,0.0002178,3]
[348986491,1736916656087,-274.90795581,0.0002178,3]
[348986492,1736916656100,-805.03,0.0002178,3]
[348986493,1736916656111,-500.0,0.0002178,3]
[348986494,1736916656239,-13667.5,0.0002178,3]
[348986495,1736916656254,-655.22,0.0002178,3]
[348986496,1736916656264,-1080.86,0.0002178,3]
[348986497,1736916656273,-500.0,0.0002178,3]
[348986498,1736916656284,-1373.43,0.0002178,3]
[348986499,1736916656293,-500.0,0.0002178,3]
[348986500,1736916656303,-1827.85,0.0002178,3]
[348986501,1736916656312,-599.91,0.0002178,3]
[348986502,1736916656322,-712.76,0.0002178,3]
[348986503,1736916656333,-807.76,0.0002178,3]
[348986504,1736916656342,-684.89,0.0002178,3]
[348986505,1736916656352,-1567.61,0.0002178,3]
[348986506,1736916656362,-500.0,0.0002178,3]
[348986507,1736916656371,-757.07,0.0002178,3]
[348986508,1736916656382,-3983.37,0.0002178,3]
[348986509,1736916656392,-500.0,0.0002178,3]
[348986510,1736916656402,-5135.68,0.0002178,2]
[348986511,1736916656412,-624.76,0.0002178,3]
[348986512,1736916656421,-4712.04,0.0002178,3]
[348986513,1736916656430,-610.45,0.0002178,3]
[348986514,1736916656440,-550.77,0.0002178,3]
[348986515,1736916656449,-2486.58,0.0002178,3]
[348986516,1736916656461,-1074.60645496,0.00021814,2]
[348986517,1736916656470,-1500.0,0.00021814,2]
[348986518,1736916656479,-243.22012971,0.00021831,2]
[348986519,1736916656489,-5000.0,0.000219,2]
[348986520,1736916656498,-150.0,0.000219,2]
[348986521,1736916656508,-188.5,0.000219,2]
[348986522,1736916656518,-160.0,0.00021917,5]
[348986523,1736916656527,-160.95020243,0.00021917,5]
[348986524,1736916656537,-742.49,0.00021917,3]
[348986525,1736916656547,-631.69,0.00021917,3]
[348986526,1736916656557,-550.31,0.00021917,3]
[348986527,1736916656567,-500.0,0.00021917,3]
[348986528,1736916656577,-500.0,0.00021917,3]
[348986529,1736916656587,-691.61,0.00021917,3]
[348986530,1736916656597,-633.68,0.00021917,2]
[348986531,1736916656607,-3854.09,0.00021917,3]
[348986532,1736916656617,-4218.29,0.00021917,3]
[348986533,1736916656627,-926.75,0.00021917,3]
[348986534,1736916656637,-1293.58,0.00021917,3]
[348986535,1736916656647,-805.03,0.00021917,3]
[348986536,1736916656656,-500.0,0.00021917,3]
[348986537,1736916656666,-13667.5,0.00021917,3]
[348986538,1736916656675,-655.22,0.00021917,3]
[348986539,1736916656684,-1080.86,0.00021917,3]
[348986540,1736916656693,-442.28852553,0.00021917,3]
[348986541,1736916656703,-1373.43,0.00021917,3]
[348986542,1736916656723,-500.0,0.00021917,3]
[348986543,1736916656735,-1827.85,0.00021917,3]
[348986544,1736916656745,-599.91,0.00021917,3]
[348986545,1736916656755,-712.76,0.00021917,3]
[348986546,1736916656766,-807.76,0.00021917,3]
[348986547,1736916656776,-684.89,0.00021917,3]
[348986548,1736916656787,-1567.61,0.00021917,3]
[348986549,1736916656798,-500.0,0.00021917,3]
[348986550,1736916656809,-500.0,0.00021917,2]
[348986551,1736916656819,-500.0,0.00021917,2]
[348986552,1736916656830,-500.0,0.00021917,2]
[348986553,1736916656840,-500.0,0.00021917,2]
[348986554,1736916656849,-500.0,0.00021917,2]
[348986555,1736916656858,-500.0,0.00021917,2]
[348986556,1736916656867,-500.0,0.00021917,2]
[348986557,1736916656876,-500.0,0.00021917,2]
[348986558,1736916656885,-500.0,0.00021917,2]
[348986559,1736916656893,-511.15192628,0.00021917,2]
[348986560,1736916656902,-757.07,0.00021917,3]
[348986561,1736916656913,-3983.37,0.00021917,3]
[348986562,1736916656923,-500.0,0.00021917,3]
[348986563,1736916656933,-5135.68,0.00021917,2]
[348986564,1736916656943,-624.76,0.00021917,3]
[348986565,1736916656953,-4712.04,0.00021917,3]
[348986566,1736916656967,-610.45,0.00021917,3]
[348986567,1736916656978,-550.77,0.00021917,3]
[348986568,1736916656988,-2486.58,0.00021917,3]
[348986569,1736916656998,-564.33329284,0.00021936,2]
[348986570,1736916657011,-151.0,0.00021966,6]
[348986571,1736916657022,-12233.12,0.00022,2]
[348986572,1736916657032,-2553.53,0.00022,14]
[348986573,1736916657044,-243.22012971,0.00022003,2]
[348986574,1736916657055,-2570.79198279,0.00022025,2]
[348986575,1736916657067,-742.49,0.00022054,3]
[348986576,1736916657079,-631.69,0.00022054,3]
[348986577,1736916657089,-550.31,0.00022054,3]
[348986578,1736916657101,-610.96849,0.00022054,3]
[348986579,1736916657111,-365.22459926,0.00022054,3]
[348986580,1736916657121,-691.61,0.00022054,3]
[348986581,1736916657131,-633.68,0.00022054,2]
[348986582,1736916657141,-3854.09,0.00022054,3]
[348986583,1736916657152,-4218.29,0.00022054,3]
[348986584,1736916657161,-926.75,0.00022054,3]
[348986585,1736916657172,-1293.58,0.00022054,3]
[348986586,1736916657182,-805.03,0.00022054,3]
[348986587,1736916657192,-601.38752275,0.00022054,3]
[348986588,1736916657202,-13667.5,0.00022054,3]
[348986589,1736916657214,-655.22,0.00022054,3]
[348986590,1736916657223,-1080.86,0.00022054,3]
[348986591,1736916657233,-1373.43,0.00022054,3]
[348986592,1736916657243,-500.0,0.00022054,3]
[348986593,1736916657253,-1827.85,0.00022054,3]
[348986594,1736916657263,-599.91,0.00022054,3]
[348986595,1736916657273,-712.76,0.00022054,3]
[348986596,1736916657283,-807.76,0.00022054,3]
[348986597,1736916657293,-684.89,0.00022054,3]
[348986598,1736916657303,-1567.61,0.00022054,3]
[348986599,1736916657313,-500.0,0.00022054,3]
[348986600,1736916657324,-757.07,0.00022054,3]
[348986601,1736916657334,-3983.37,0.00022054,3]
[348986602,1736916657344,-267.0098632,0.00022054,3]
[348986603,1736916657353,-5135.68,0.00022054,2]
[348986604,1736916657364,-624.76,0.00022054,3]
[348986605,1736916657373,-4712.04,0.00022054,3]
[348986606,1736916657383,-610.45,0.00022054,3]
[348986607,1736916657393,-550.77,0.00022054,3]
[348986608,1736916657403,-2486.58,0.00022054,3]
[348986609,1736916657413,-153.7592399,0.00022055,2]
[348986610,1736916657423,-153.0,0.00022055,2]
[348986611,1736916657433,-153.0,0.00022055,2]
[348986612,1736916657443,-1000.0,0.00022085,2]
[348986613,1736916657453,-3156.75,0.000221,2]
[348986614,1736916657463,-243.22012971,0.00022176,2]
[348986615,1736916657474,-742.49,0.00022191,3]
[348986616,1736916657485,-631.69,0.00022191,3]
[348986617,1736916657495,-550.31,0.00022191,3]
[348986618,1736916657505,-691.61,0.00022191,3]
[348986619,1736916657515,-633.68,0.00022191,2]
[348986620,1736916657525,-3854.09,0.00022191,3]
[348986621,1736916657535,-4218.29,0.00022191,3]
[348986622,1736916657545,-926.75,0.00022191,3]
[348986623,1736916657556,-1293.58,0.00022191,3]
[348986624,1736916657569,-805.03,0.00022191,3]
[348986625,1736916657579,-13667.5,0.00022191,3]
[348986626,1736916657589,-655.22,0.00022191,3]
[348986627,1736916657599,-1080.86,0.00022191,3]
[348986628,1736916657610,-1373.43,0.00022191,3]
[348986629,1736916657620,-559.65829911,0.00022191,3]
[348986630,1736916657629,-1827.85,0.00022191,3]
[348986631,1736916657639,-599.91,0.00022191,3]
[348986632,1736916657649,-712.76,0.00022191,3]
[348986633,1736916657659,-807.76,0.00022191,3]
[348986634,1736916657670,-684.89,0.00022191,3]
[348986635,1736916657680,-1567.61,0.00022191,3]
[348986636,1736916657690,-500.0,0.00022191,3]
[348986637,1736916657700,-757.07,0.00022191,3]
[348986638,1736916657711,-3983.37,0.00022191,3]
[348986639,1736916657720,-5135.68,0.00022191,2]
[348986640,1736916657730,-624.76,0.00022191,3]
[348986641,1736916657740,-4712.04,0.00022191,3]
[348986642,1736916657750,-610.45,0.00022191,3]
[348986643,1736916657759,-550.77,0.00022191,3]
[348986644,1736916657770,-2486.58,0.00022191,3]
[348986645,1736916657779,-601.51241068,0.00022224,2]
[348986646,1736916657789,-151.0,0.00022253,6]
[348986647,1736916657799,-88809.02798135,0.00022328,3]
[348986648,1736916657809,-742.53,0.00022328,3]
[348986649,1736916657819,-631.92200271,0.00022328,3]
[348986650,1736916657828,-550.52359603,0.00022328,3]
[348986651,1736916657838,-691.71251737,0.00022328,3]
[348986652,1736916657848,-633.73335074,0.00022328,2]
[348986653,1736916657858,-3854.11271992,0.00022328,3]
[348986654,1736916657867,-4218.38107341,0.00022328,3]
[348986655,1736916657877,-926.85603759,0.00022328,3]
[348986656,1736916657887,-1293.60245678,0.00022328,3]
[348986657,1736916657897,-805.1592049,0.00022328,3]
[348986658,1736916657907,-13667.50791503,0.00022328,3]
[348986659,1736916657918,-655.34958163,0.00022328,3]
[348986660,1736916657927,-1080.934978,0.00022328,3]
[348986661,1736916657936,-1373.43663666,0.00022328,3]
[348986662,1736916657947,-1828.03552279,0.00022328,3]
[348986663,1736916657958,-599.93893236,0.00022328,3]
[348986664,1736916657971,-712.97557896,0.00022328,3]
[348986665,1736916657982,-807.98678266,0.00022328,3]
[348986666,1736916657992,-685.11502638,0.00022328,3]
[348986667,1736916658002,-1567.73346808,0.00022328,3]
[348986668,1736916658013,-257.16607704,0.00022328,3]
[348986669,1736916658023,-757.29159682,0.00022328,3]
[348986670,1736916658033,-3983.4910888,0.00022328,3]
[348986671,1736916658043,-5135.72450433,0.00022328,2]
[348986672,1736916658053,-624.8335258,0.00022328,3]
[348986673,1736916658063,-4712.13902178,0.00022328,3]
[348986674,1736916658073,-610.51,0.00022328,3]
[348986675,1736916658083,-550.99282519,0.00022328,3]
[348986676,1736916658093,-2486.59567462,0.00022328,3]
[348986677,1736916658102,-243.22012971,0.00022348,2]
[348986678,1736916658112,-368.0,0.000224,10]
[348986679,1736916658122,-150.0,0.000224,2]
[348986680,1736916658131,-2570.79198279,0.00022423,2]
[348986681,1736916658141,-243.22012971,0.00022521,2]
[348986682,1736916658151,-151.0,0.00022541,7]
[348986683,1736916658161,-161.0,0.0002256,2]
[348986684,1736916658171,-161.0,0.0002256,2]
[348986685,1736916658180,-161.0,0.0002256,2]
[348986686,1736916658190,-161.0,0.0002256,2]
[348986687,1736916658200,-161.0,0.0002256,2]
[348986688,1736916658211,-161.0,0.0002256,2]
[348986689,1736916658221,-161.0,0.0002256,2]
[348986690,1736916658231,-164.37,0.0002256,2]
[348986691,1736916658241,-188.0,0.000226,2]
[348986692,1736916658250,-243.22012971,0.00022693,2]
[348986693,1736916658261,-1500.0,0.0002275,2]
[348986694,1736916658273,-564.33329284,0.00022776,2]
[348986695,1736916658283,-2570.79198279,0.0002282,2]
[348986696,1736916658293,-151.0,0.00022828,7]
[348986697,1736916658303,-243.22012971,0.00022866,2]
[348986698,1736916658313,-1329.47317146,0.00022876,3]
[348986699,1736916658323,-6826.55,0.000229,14]
[348986700,1736916658332,-1080.6827187,0.000229,2]
[348986701,1736916658342,-153.0,0.00022904,2]
[348986702,1736916658353,-429.8052582,0.00022904,2]
[348986703,1736916658363,-153.0,0.00022904,2]
[348986704,1736916658373,-153.0,0.00022904,2]
[348986705,1736916658383,-1016.40156292,0.00022928,2]
[348986706,1736916658393,-7438.69753278,0.00023,2]
[348986707,1736916658403,-553.32942961,0.00023,2]
[348986708,1736916658414,-474377.06184912,0.00023,2]
[348986709,1736916658423,-7438.69753278,0.00023,3]
[348986710,1736916658433,-200.0,0.00023,2]
[348986711,1736916658443,-243.22012971,0.00023038,2]
[348986712,1736916658453,-1500.0,0.00023087,2]
[348986713,1736916658570,-723.37320056,0.00023111,2]
[348986714,1736916658582,-151.0,0.00023115,7]
[348986715,1736916658591,-823.0,0.00023168,2]
[348986716,1736916658601,-388.9009,0.000232,2]
[348986717,1736916658610,-243.22012971,0.0002321,2]
[348986718,1736916658621,-2570.79198279,0.00023218,2]
[348986719,1736916658630,-536.0,0.00023231,2]
[348986720,1736916658640,-2070.0,0.00023231,2]
[348986721,1736916658650,-2311.0,0.00023231,2]
[348986722,1736916658660,-395.0,0.00023231,2]
[348986723,1736916658669,-150.0,0.00023231,2]
[348986724,1736916658678,-11244.69098963,0.000233,3]
[348986725,1736916658688,-2108.0,0.00023328,7]
[348986726,1736916658697,-243.22012971,0.00023383,2]
[348986727,1736916658707,-773.161,0.000234,2]
[348986728,1736916658717,-151.0,0.00023403,7]
[348986729,1736916658727,-5020.00772935,0.00023435,2]
[348986730,1736916658736,-22549.33654149,0.00023452,2]
[348986731,1736916658746,-9044.82581408,0.00023479,2]
[348986732,1736916658755,-5000.0,0.00023479,2]
[348986733,1736916658765,-5000.0,0.00023479,2]
[348986734,1736916658774,-5000.0,0.00023479,2]
[348986735,1736916658784,-5000.0,0.00023479,2]
[348986736,1736916658794,-243.22012971,0.00023555,2]
[348986737,1736916658803,-2000.0,0.000236,2]
[348986738,1736916658817,-2000.0,0.000236,2]
[348986739,1736916658826,-12200.0,0.000236,15]
[348986740,1736916658835,-2000.0,0.000236,2]
[348986741,1736916658845,-12233.12,0.000236,2]
[348986742,1736916658854,-2553.53,0.000236,14]
[348986743,1736916658864,-564.33329284,0.00023616,2]
[348986744,1736916658874,-2570.79198279,0.00023616,2]
[348986745,1736916658883,-1286.93600033,0.00023647,39]
[348986746,1736916658893,-8810.84509729,0.0002367,14]
[348986747,1736916658902,-151.0,0.0002369,7]
[348986748,1736916658911,-754038.73424683,0.00023716,61]
[348986749,1736916658921,-36654.01087108,0.00023716,120]
[348986750,1736916658930,-1845.89795372,0.00023716,2]
[348986751,1736916658939,-200.42281311,0.00023716,120]
[348986752,1736916658949,-467958.39278347,0.00023716,61]
[348986753,1736916659346,-500.0,0.00019315,3]
[348986754,1736916659356,-530.9980873,0.00019452,3]
[348986755,1736916659367,-150.316,0.00020231,2]
[348986756,1736916659378,-500.0,0.00020821,3]
[348986757,1736916659387,-500.0,0.00020958,3]
[348986758,1736916659397,-500.0,0.00021095,3]
[348986759,1736916659407,-500.0,0.00021232,3]
[348986760,1736916659417,-500.0,0.00021369,3]
[348986761,1736916659426,-500.0,0.00021506,3]
[348986762,1736916659435,-673.49,0.00021643,3]
[348986763,1736916659445,-500.0,0.00021643,3]
[348986764,1736916659454,-673.49,0.0002178,3]
[348986765,1736916659464,-500.0,0.0002178,3]
[348986766,1736916659473,-500.0,0.00021917,3]
[348986767,1736916659482,-673.49,0.00021917,3]
[348986768,1736916659491,-617.3300334,0.00022054,3]
[348986769,1736916659501,-673.49,0.00022054,3]
[348986770,1736916659510,-673.49,0.00022191,3]
[348986771,1736916659519,-45287.44568143,0.00023716,61]
[348986772,1736916659531,-60409.49950461,0.00023716,61]
[348986773,1736916659814,-673.54793235,0.00022328,3]
[348986774,1736916659823,-262886.86768028,0.00023716,61]
[348986775,1736916659832,-413640.37013766,0.00023716,61]
[348986776,1736916659842,-1237.02332426,0.00023716,120]
[348986777,1736916659851,-6110.03288757,0.00023716,15]
[348986778,1736916659861,-1318.19505331,0.00023716,120]
[348986779,1736916659870,-358501.16263644,0.00023716,61]
[348986780,1736916659880,-349266.18289561,0.00023716,61]
[348986781,1736916659890,-703105.83425365,0.00023716,61]
[348986782,1736916659900,-950990.11334505,0.00023716,61]
[348986783,1736916659911,-3199821.08892342,0.00023716,61]
[348986784,1736916659921,-1386861.05979594,0.00023716,61]
[348986785,1736916659931,-1215.56352052,0.00023716,120]
[348986786,1736916659940,-576357.87255641,0.00023716,61]
[348986787,1736916659950,-3809.84185615,0.00023716,2]
[348986788,1736916659960,-380093.15084063,0.00023716,61]
[348986789,1736916659974,-333673.44334957,0.00023716,61]
[348986790,1736916659984,-3165.0,0.00023716,32]
[348986791,1736916659996,-327156.15480729,0.00023716,61]
[348986792,1736916660007,-3189679.32485743,0.00023716,61]
[348986793,1736916660018,-1388.37319943,0.00023716,30]
[348986794,1736916660028,-830.04074293,0.00023716,30]
[348986795,1736916660038,-1220.86332893,0.00023716,30]
[348986796,1736916660049,-3163.87858654,0.00023716,30]
[348986797,1736916660059,-237.97330173,0.00023716,30]
[348986798,1736916660069,-1813.7616176,0.00023716,30]
[348986799,1736916660079,-628028.04457835,0.00023716,61]
[348986800,1736916660089,-598248.32138017,0.00023716,61]
[348986801,1736916660099,-1628.319999,0.00023716,2]
[348986802,1736916660108,-555485.92809169,0.00023716,61]
[348986803,1736916660118,-1376.37014751,0.00023716,120]
[348986804,1736916660128,-3435169.9428117,0.00023716,61]
[348986805,1736916660138,-299.62287925,0.00023716,2]
[348986806,1736916660148,-415.0,0.00023716,25]
[348986807,1736916660158,-314194.88177828,0.00023716,61]
[348986808,1736916660168,-3964845.66328035,0.00023716,61]
[348986809,1736916660177,-278332.15924147,0.00023716,61]
[348986810,1736916660187,-1225431.02615978,0.00023716,61]
[348986811,1736916660196,-1284.05619387,0.00023716,120]
[348986812,1736916660205,-322961.56473541,0.00023716,61]
[348986813,1736916660216,-1563546.3517469,0.00023716,61]
[348986814,1736916660225,-835488.79699116,0.00023716,61]
[348986815,1736916660235,-1099177.76314172,0.00023716,61]
[348986816,1736916660244,-25528.76578762,0.00023716,7]
[348986817,1736916660254,-500.0,0.00023716,2]
[348986818,1736916660263,-2588937.42426536,0.00023716,61]
[348986819,1736916660273,-3110942.78342369,0.00023716,61]
[348986820,1736916660283,-776256.83198072,0.00023716,61]
[348986821,1736916660293,-479963.95525606,0.00023716,61]
[348986822,1736916660302,-556122.46857114,0.00023716,61]
[348986823,1736916660312,-62627.33402235,0.00023716,61]
[348986824,1736916660325,-500.0,0.00023716,61]
[348986825,1736916660405,-1321.836257,0.00023716,61]
[348986826,1736916960204,25031.48792479,0.0002,120]
[348986827,1736917238945,341.788151,0.00013973,2]
[348986878,1736917832473,-4589.36905495,0.00016284,2]
[348986880,1736917832483,-779.1104359,0.00016423,2]
[348986882,1736917832495,-994.6153332,0.00016449,2]
[348986884,1736917832506,-350.616589,0.00017343,2]
[348986886,1736917832516,-163.98376503,0.00017348,2]
[348986888,1736917832525,-161.23808371,0.00017348,2]
[348986890,1736917832535,-500.0,0.00017447,2]
[348986892,1736917832544,-500.0,0.00017447,2]
[348986894,1736917832555,-500.0,0.00017447,2]
[348986896,1736917832564,-304.4927486,0.00017447,2]
[348986898,1736917832574,-500.0,0.00017447,2]
[348986900,1736917832583,-500.0,0.00017447,2]
[348986902,1736917832591,-500.0,0.00017447,2]
[348986904,1736917832601,-500.0,0.00017447,2]
[348986906,1736917832611,-500.0,0.00017447,2]
[348986908,1736917832621,-500.0,0.00017447,2]
[348986910,1736917832630,-500.0,0.00017447,2]
[348986912,1736917832639,-441.67671356,0.00017447,2]
[348986914,1736917832648,-500.0,0.00017447,2]
[348986916,1736917832657,-505.53391577,0.00017447,2]
[348986918,1736917832667,-500.0,0.00017447,2]
[348986919,1736917832677,-500.0,0.00017447,2]
[348986921,1736917832686,-500.0,0.00017447,2]
[348986923,1736917832695,-72.44127274,0.00017447,2]
[348986926,1736917832708,-427.55872726,0.00017447,2]
[348986927,1736917832718,-500.0,0.00017447,2]
[348986928,1736917832728,-500.0,0.00017447,2]
[348986929,1736917832737,-500.0,0.00017447,2]
[348986930,1736917832746,-500.0,0.00017447,2]
[348986931,1736917832756,-61.58360327,0.00017447,2]
[348986932,1736917832812,-438.41639673,0.00017447,2]
[348986933,1736917832821,-500.0,0.00017447,2]
[348986934,1736917832832,-500.0,0.00017447,2]
[348986935,1736917832842,-500.0,0.00017447,2]
[348986936,1736917832852,-500.0,0.00017447,2]
[348986937,1736917832861,-500.0,0.00017447,2]
[348986938,1736917832871,-496.86383564,0.00017447,2]
[348986977,1736917838274,-3.13616436,0.00017447,2]
[348986978,1736917838284,-500.0,0.00017447,2]
[348986980,1736917838294,-417.30804524,0.00017447,2]
[348986982,1736917838303,-500.0,0.00017447,2]
[348986984,1736917838313,-500.0,0.00017447,2]
[348986986,1736917838323,-500.0,0.00017447,2]
[348986988,1736917838332,-500.0,0.00017447,2]
[348986989,1736917838342,-500.0,0.00017447,2]
[348986990,1736917838351,-500.0,0.00017447,2]
[348986991,1736917838362,-500.0,0.00017447,2]
[348986992,1736917838372,-500.0,0.00017447,2]
[348986993,1736917838382,-500.0,0.00017447,2]
[348986994,1736917838391,-500.0,0.00017447,2]
[348986995,1736917838400,-500.0,0.00017447,2]
[348986996,1736917838410,-500.0,0.00017447,2]
[348986997,1736917838420,-500.0,0.00017447,2]
[348986998,1736917838430,-500.0,0.00017447,2]
[348986999,1736917838440,-500.0,0.00017447,2]
[348987000,1736917838451,-500.0,0.00017447,2]
[348987001,1736917838461,-500.0,0.00017447,2]
[348987002,1736917838474,-500.0,0.00017447,2]
[348987003,1736917838484,-500.0,0.00017447,2]
[348987004,1736917838497,-500.0,0.00017447,2]
[348987005,1736917838507,-500.0,0.00017447,2]
[348987006,1736917838517,-500.0,0.00017447,2]
[348987007,1736917838527,-500.0,0.00017447,2]
[348987008,1736917838537,-500.0,0.00017447,2]
[348987009,1736917838547,-500.0,0.00017447,2]
[348987010,1736917838707,-500.0,0.00017447,2]
[348987011,1736917838720,-500.0,0.00017447,2]
[348987012,1736917838730,-500.0,0.00017447,2]
[348987013,1736917838740,-500.0,0.00017447,2]
[348987014,1736917838750,-500.0,0.00017447,2]
[348987015,1736917838759,-500.0,0.00017447,2]
[348987016,1736917838769,-300.0,0.00017447,2]
[348987017,1736917838779,-435.25715951,0.00017447,2]
[348987060,1736917840372,-63120.74284049,0.00017447,2]
[348987062,1736917840382,-500.0,0.0001745,2]
[348987064,1736917840391,-154.79876161,0.00017451,2]
[348987066,1736917840401,-2764.65461999,0.00017456,2]
[348987503,1736917974599,1297.07,0.00015054,2]
[348987505,1736918173410,324.698743,0.00013973,2]
[348987588,1736919032901,-291.29690626,0.00015688,2]
[348987648,1736919038583,-5026.67457744,0.00015688,2]
[348987649,1736919038592,-459.69572676,0.00015731,2]
[348987650,1736919038706,-225.7732733,0.00015831,2]
[348987651,1736919038715,-211.05195539,0.0001584,2]
[348987652,1736919038725,-5951.83049386,0.00015999,2]
[348987653,1736919038738,-2607.16950614,0.00015999,2]
[348987654,1736919038748,-7141.28074402,0.00016,2]
[348987685,1736919043730,-424.84278194,0.00016,2]
[348987686,1736919043740,-369.0927659,0.00016282,2]
[348987687,1736919043750,-1047.0665835,0.00016469,2]
[348987688,1736919043760,-201.938244,0.00017119,2]
[348987689,1736919043771,-160.84445122,0.00017136,2]
[348987690,1736919043782,-7420.00420962,0.0001715,2]
[348987710,1736919068675,308.463805,0.00013973,2]
[348987711,1736919943816,293.040614,0.00013973,2]
[348987713,1736920163130,-800.0,0.0001578,2]
[348987714,1736920163150,-374.46572252,0.00016772,2]
[348987715,1736920163173,-300.0,0.00016871,2]
[348987716,1736920163196,-567.72129358,0.00016872,2]
[348987774,1736920232861,-7622.00243271,0.00016872,2]
[348987776,1736920232873,-16710.27627371,0.00016872,2]
[348987778,1736920232882,-219.6621195,0.00017094,2]
[348987780,1736920232891,-6731.94141148,0.00017136,5]
[348987782,1736920232900,-2697.52255155,0.00017136,5]
[348987784,1736920232909,-371.96890123,0.00017136,2]
[348987786,1736920232918,-5288.89378072,0.00017136,2]
[348987788,1736920232927,-175.308295,0.00017812,2]
[348987790,1736920232936,-155.24537534,0.00018324,2]
[348987793,1736920232946,-154.5,0.000186,2]
[348987794,1736920232954,-1125.05862817,0.000189,2]
[348987796,1736920232964,-152.0,0.00018979,2]
[348987798,1736920232973,-150.41472029,0.00019,2]
[348987800,1736920232982,-24999.97000074,0.00019078,7]
[348987802,1736920232992,-203.46183657,0.00019166,2]
[348987804,1736920233001,-500.0,0.00019172,2]
[348987806,1736920233011,-500.0,0.00019172,2]
[348987808,1736920233020,-500.0,0.00019172,2]
[348987810,1736920233030,-500.0,0.00019172,2]
[348987812,1736920233040,-595.31246088,0.00019172,2]
[348987814,1736920233051,-500.0,0.00019172,2]
[348987817,1736920233061,-500.0,0.00019172,2]
[348987818,1736920233070,-500.0,0.00019172,2]
[348987821,1736920233080,-500.0,0.00019172,2]
[348987823,1736920233090,-500.0,0.00019172,2]